fUSD/lending_fUSD_20250220
["ID","MTS","AMOUNT","RATE_DAILY","PERIOD"]
[353811675,1740071449779,-521.37495496,0.00011041,2]
[353811676,1740071449791,-500.0,0.00011041,2]
[353811677,1740071449802,-500.0,0.00011041,2]
[353811678,1740071449813,-500.0,0.00011041,2]
[353811679,1740071449826,-208.38,0.00011041,2]
[353811680,1740071449839,-500.0,0.00011041,2]
[353811681,1740071449851,-266.45,0.00011041,2]
[353811682,1740071449863,-523.60123206,0.00011041,2]
[353811683,1740071449876,-500.0,0.00011041,2]
[353811684,1740071449888,-500.0,0.00011041,2]
[353811685,1740071449899,-500.0,0.00011041,2]
[353811686,1740071449910,-500.0,0.00011041,2]
[353811687,1740071449921,-500.0,0.00011041,2]
[353811688,1740071449932,-500.0,0.00011041,2]
[353811689,1740071449942,-500.0,0.00011041,2]
[353811690,1740071449952,-500.0,0.00011041,2]
[353811691,1740071449964,-500.0,0.00011041,2]
[353811692,1740071449976,-500.0,0.00011041,2]
[353811693,1740071449987,-500.0,0.00011041,2]
[353811694,1740071449998,-500.0,0.00011041,2]
[353811695,1740071450009,-500.0,0.00011041,2]
[353811696,1740071450024,-500.0,0.00011041,2]
[353811697,1740071450035,-500.0,0.00011041,2]
[353811698,1740071450046,-500.0,0.00011041,2]
[353811699,1740071450059,-500.0,0.00011041,2]
[353811700,1740071450071,-500.0,0.00011041,2]
[353811701,1740071450083,-500.0,0.00011041,2]
[353811702,1740071450094,-456.85,0.00011041,2]
[353811703,1740071450105,-500.0,0.00011041,2]
[353811704,1740071450116,-500.0,0.00011041,2]
[353811705,1740071450127,-500.0,0.00011041,2]
[353811706,1740071450139,-500.0,0.00011041,2]
[353811707,1740071450150,-500.0,0.00011041,2]
[353811708,1740071450160,-500.0,0.00011041,2]
[353811709,1740071450172,-500.0,0.00011041,2]
[353811710,1740071450184,-500.0,0.00011041,2]
[353811711,1740071450195,-500.0,0.00011041,2]
[353811712,1740071450206,-500.0,0.00011041,2]
[353811713,1740071450218,-234.16,0.00011041,2]
[353811714,1740071450229,-500.0,0.00011041,2]
[353811715,1740071450241,-500.0,0.00011041,2]
[353811716,1740071450253,-510.37627042,0.00011041,2]
[353811717,1740071450265,-500.0,0.00011041,2]
[353811718,1740071450278,-500.0,0.00011041,2]
[353811719,1740071450291,-500.0,0.00011041,2]
[353811720,1740071450303,-500.0,0.00011041,2]
[353811721,1740071450315,-500.0,0.00011041,2]
[353811722,1740071450327,-500.0,0.00011041,2]
[353811723,1740071450338,-500.0,0.00011041,2]
[353811724,1740071450349,-500.0,0.00011041,2]
[353811725,1740071450359,-500.0,0.00011041,2]
[353811726,1740071450369,-500.0,0.00011041,2]
[353811727,1740071450381,-509.5,0.00011041,2]
[353811728,1740071450391,-578.77,0.00011041,2]
[353811729,1740071450403,-500.0,0.00011041,2]
[353811730,1740071450416,-500.0,0.00011041,2]
[353811731,1740071450429,-500.0,0.00011041,2]
[353811732,1740071450439,-500.0,0.00011041,2]
[353811733,1740071450449,-500.0,0.00011041,2]
[353811734,1740071450459,-500.0,0.00011041,2]
[353811735,1740071450469,-500.0,0.00011041,2]
[353811736,1740071450479,-500.0,0.00011041,2]
[353811737,1740071450490,-500.0,0.00011041,2]
[353811738,1740071450501,-500.0,0.00011041,2]
[353811739,1740071450513,-500.0,0.00011041,2]
[353811740,1740071450525,-1454.03,0.00011095,2]
[353811741,1740071450538,-49227.2586018,0.00011099,2]
[353811742,1740071563562,526.93,0.00013918,30]
[353811743,1740071729562,1981.87557776,0.00020537,120]
[353811745,1740072021276,500.0,0.00011098,30]
[353811747,1740072252922,509.27,8.219e-05,2]
[353811750,1740072312072,156.72,8.767e-05,2]
[353811751,1740072408736,518.34500928,0.000204,120]
[353811753,1740072562244,500.58,0.00013918,30]
[353811766,1740072631403,-150.0,9.577e-05,2]
[353811768,1740072631415,-231.38211959,9.617e-05,2]
[353811770,1740072631459,-132.87788041,9.617e-05,2]
[353811771,1740072631468,-2198.38,9.63e-05,2]
[353811772,1740072631478,-474.82,9.704e-05,2]
[353811773,1740072631488,-1000.0,9.809e-05,2]
[353811774,1740072631498,-7258.56,9.911e-05,2]
[353811775,1740072631507,-634.76535036,9.949e-05,2]
[353811776,1740072631516,-179.67,9.987e-05,2]
[353811777,1740072631526,-150.0,9.998e-05,2]
[353811778,1740072631535,-3305.0,9.999e-05,2]
[353811779,1740072631544,-500.0,9.999e-05,2]
[353811780,1740072631554,-325.83236268,9.999e-05,2]
[353811781,1740072631563,-4451.49510587,9.999e-05,2]
[353811782,1740072631582,-2415.58557651,9.999e-05,2]
[353811783,1740072631627,-356.15532581,9.999e-05,2]
[353811784,1740072631639,-1410.00399181,9.999e-05,2]
[353811785,1740072631650,-150.99,9.999e-05,2]
[353811786,1740072631662,-2358.3259264,9.999e-05,2]
[353811787,1740072631673,-2744.08019265,9.999e-05,2]
[353811788,1740072631683,-1545.88415412,9.999e-05,2]
[353811789,1740072631694,-1855.81749536,9.999e-05,2]
[353811790,1740072631709,-2700.19296935,9.999e-05,2]
[353811791,1740072631720,-11987.6,9.999e-05,2]
[353811792,1740072631733,-18061.75971291,9.999e-05,2]
[353811793,1740072631744,-2866.54954921,9.999e-05,2]
[353811794,1740072631753,-9999.99,9.999e-05,2]
[353811795,1740072631762,-999.99,9.999e-05,2]
[353811796,1740072631771,-6613.07,9.999e-05,2]
[353811797,1740072631780,-499.99,9.999e-05,2]
[353811798,1740072631790,-9999.99,9.999e-05,2]
[353811800,1740072631799,-18215.22337857,0.0001,2]
[353811805,1740072631840,-979.02,0.0001,2]
[353811807,1740072631852,-12862.20762465,0.0001,2]
[353811845,1740072637409,-708.55772326,0.0001,2]
[353811846,1740072637431,-1720.67102792,0.0001,2]
[353811854,1740072645650,-1874.2035188,9.877e-05,2]
[353811858,1740073318904,153.97,8.767e-05,2]
[353811860,1740073333155,539.16,8.219e-05,2]
[353811861,1740073503751,150.0,9e-05,2]
[353811862,1740073506456,150.0,9e-05,2]
[353811863,1740073510822,150.0,9e-05,2]
[353811864,1740073517367,150.0,9e-05,2]
[353811865,1740073560427,2590.87975567,9.241e-05,2]
[353811866,1740073560450,442.10024433,9.241e-05,2]
[353811867,1740073610002,475.55,0.00013918,30]
[353811868,1740073724835,150.0,8.913e-05,2]
[353811869,1740073725061,150.0,8.575e-05,2]
[353811870,1740073725250,150.0,8.554e-05,2]
[353811882,1740073831609,-966.54773305,9.622e-05,2]
[353811883,1740073831665,-33.45226695,9.622e-05,2]
[353811884,1740073831675,-170.64,9.638e-05,2]
[353811885,1740073831684,-385.13273055,9.8e-05,2]
[353811886,1740073831774,-536.70986734,9.8e-05,2]
[353811887,1740073831786,-2537.05640211,9.8e-05,2]
[353811888,1740073831795,-174.453,9.8e-05,2]
[353811889,1740073831806,-2244.73,9.829e-05,2]
[353811890,1740073831818,-150.0,9.836e-05,2]
[353811891,1740073831828,-542.98,9.857e-05,2]
[353811892,1740073831838,-200.0,9.861e-05,2]
[353811893,1740073831847,-250.0,9.861e-05,2]
[353811894,1740073831858,-150.0,9.864e-05,2]
[353811895,1740073831868,-267.6,9.864e-05,2]
[353811896,1740073831877,-150.99,9.877e-05,2]
[353811897,1740073831887,-17435.3775,9.9e-05,2]
[353811898,1740073831898,-1681.78475551,9.9e-05,2]
[353811899,1740073831912,-23878.72834449,9.9e-05,2]
[353811900,1740073831921,-150.0,9.927e-05,2]
[353811901,1740073831930,-751.97,9.953e-05,2]
[353811902,1740073831940,-150.0,9.988e-05,2]
[353811903,1740073831949,-150.0,9.989e-05,2]
[353811904,1740073831958,-150.0,9.994e-05,2]
[353811905,1740073831967,-150.0,9.999e-05,2]
[353811906,1740073831976,-19594.47515742,0.0001,2]
[353811907,1740073831995,-330.96245291,0.0001,2]
[353811908,1740073832007,-48462.90918115,0.0001,2]
[353811909,1740073832025,-208332.29245811,0.0001,2]
[353811910,1740073832036,-294.29499367,0.0001,2]
[353811912,1740073832053,-947.83,0.0001,2]
[353811914,1740073832064,-729.35629871,0.0001,2]
[353811942,1740073837528,-931.66671799,0.0001,2]
[353811943,1740073837585,-555.26247137,0.0001,2]
[353811944,1740073837597,-1266.6999989,0.0001,2]
[353811945,1740073837640,-418.64,0.0001,2]
[353811946,1740073837695,-1239.2570951,0.0001,2]
[353811947,1740073837753,-1629.83238255,0.0001,2]
[353811948,1740073837765,-1908.10401218,0.0001,2]
[353811949,1740073837775,-5716.14343883,0.0001,2]
[353811950,1740073837787,-1476.42,0.0001,2]
[353811951,1740073837810,-115885.92305881,0.0001,2]
[353812131,1740073839684,-890.25999993,0.0001,2]
[353812134,1740073839696,-1642.4000004,0.0001,2]
[353812138,1740073839731,-38471.5792013,0.0001,2]
[353812145,1740073839785,-1730.84596,0.0001,2]
[353812147,1740073839796,-518.56127574,0.0001,2]
[353812162,1740073839939,-308796.40925811,0.0001,2]
[353812164,1740073839950,-797.49998,0.0001,2]
[353812166,1740073839961,-405.555575,0.0001,2]
[353812168,1740073839973,-364.589,0.0001,2]
[353812171,1740073839983,-2450.98119544,0.0001,2]
[353812173,1740073839995,-261.26750001,0.0001,2]
[353812176,1740073840021,-1240.94457925,0.0001,2]
[353812178,1740073840032,-258.63115522,0.0001,2]
[353812184,1740073840074,-1000.0,0.0001,2]
[353812189,1740073840116,-23009.59042858,0.0001,2]
[353812432,1740073842679,-7979.57770155,0.0001,2]
[353812434,1740073842734,-50418.72740107,0.0001,2]
[353812436,1740073842746,-1308.14286186,0.0001,2]
[353812453,1740073842896,-1270.30000012,0.0001,2]
[353812727,1740073845616,-488.07758999,0.0001,2]
[353812740,1740073845725,-484.76161554,0.0001,2]
[353812754,1740073845841,-4871.3999994,0.0001,2]
[353812765,1740073845943,-92105.66314824,0.0001,2]
[353814456,1740074394481,300.46,8.767e-05,2]
[353814458,1740074417695,590.84,8.219e-05,2]
[353814459,1740074425355,163.68,7.75e-05,2]
[353814462,1740074685112,150.0,9.339e-05,2]
[353814463,1740074744933,150.0,9.033e-05,2]
[353814464,1740074745340,150.0,9.372e-05,2]
[353814465,1740074745453,150.0,9.363e-05,2]
[353814466,1740074905855,451.77,0.00013918,30]
[353814467,1740074972740,166.89,9.356e-05,2]
[353814470,1740075031771,-1000.0,9.543e-05,2]
[353814471,1740075031781,-150.0,9.556e-05,2]
[353814472,1740075031794,-150.0,9.57e-05,2]
[353814473,1740075031804,-74.88746562,9.776e-05,2]
[353814474,1740075031815,-225.11253438,9.776e-05,2]
[353814475,1740075031825,-228.36,9.777e-05,2]
[353814476,1740075031835,-4926.48,9.777e-05,2]
[353814477,1740075031844,-194.80966566,9.788e-05,2]
[353814478,1740075031855,-1426.57,9.788e-05,2]
[353814479,1740075031864,-2740.71779996,9.8e-05,2]
[353814480,1740075031884,-483.33420004,9.8e-05,2]
[353814481,1740075031894,-175.054,9.8e-05,2]
[353814482,1740075031904,-150.0,9.82e-05,2]
[353814483,1740075031913,-568.91,9.821e-05,2]
[353814484,1740075031922,-150.0,9.899e-05,2]
[353814485,1740075031930,-670.4877,9.9e-05,2]
[353814486,1740075031939,-2959.8985,9.9e-05,2]
[353814487,1740075031950,-9616.0876,9.9e-05,2]
[353814488,1740075031960,-20358.22796817,9.9e-05,2]
[353814489,1740075031973,-8042.47482163,9.9e-05,2]
[353814490,1740075031983,-150.0,9.919e-05,2]
[353814491,1740075031993,-150.0,9.967e-05,2]
[353814492,1740075032003,-798.88710824,9.967e-05,2]
[353814493,1740075032013,-150.0,9.986e-05,2]
[353814494,1740075032023,-150.0,9.986e-05,2]
[353814495,1740075032033,-150.0,9.986e-05,2]
[353814496,1740075032043,-1828.0,0.0001,2]
[353814497,1740075032053,-27475.6380709,0.0001,2]
[353815045,1740075037780,-2783.79436342,0.0001,2]
[353815046,1740075037792,-460.5428406,0.0001,2]
[353815048,1740075037804,-51474.65091207,0.0001,2]
[353815058,1740075037892,-6035.2423774,0.0001,2]
[353815071,1740075038004,-299287.97245394,0.0001,2]
[353815219,1740075039933,-151552.74759864,0.0001,2]
[353815229,1740075040203,-484.20622016,0.0001,2]
[353815230,1740075040214,-411.36,0.0001,2]
[353815231,1740075040226,-1966.85345715,0.0001,2]
[353815232,1740075040237,-1097.46449996,0.0001,2]
[353815321,1740075042857,-1433.91673512,0.0001,2]
[353815336,1740075043072,-369.12270208,0.0001,2]
[353815337,1740075043129,-292.8706028,0.0001,2]
[353815371,1740075045881,-1233.90588685,0.0001,2]
[353815372,1740075046065,-1162.62700585,0.0001,2]
[353815373,1740075046124,-1092.96585263,0.0001,2]
[353815375,1740075046136,-251.42041019,0.0001,2]
[353815634,1740075509817,717.53,8.219e-05,2]
[353815636,1740075527904,156.51,8.767e-05,2]
[353815637,1740075709166,1587.0,0.0002,120]
[353815638,1740076041537,436.93,0.00013918,30]
[353815639,1740076065218,150.0,8.589e-05,2]
[353815640,1740076065259,150.0,8.95e-05,2]
[353815645,1740076218486,250.0,9.242e-05,2]
[353815657,1740076232036,-731.18,9.667e-05,2]
[353815658,1740076232046,-500.0,9.713e-05,2]
[353815659,1740076232056,-12018.25920998,9.761e-05,2]
[353815660,1740076232067,-11881.74079002,9.761e-05,2]
[353815661,1740076232078,-729.87,9.786e-05,2]
[353815662,1740076232088,-174.41,9.812e-05,2]
[353815663,1740076232097,-440.27,9.82e-05,2]
[353815664,1740076232107,-1000.0,9.836e-05,2]
[353815665,1740076232118,-987.13,9.84e-05,2]
[353815666,1740076232128,-987.13,9.84e-05,2]
[353815667,1740076232139,-440.27,9.84e-05,2]
[353815668,1740076232151,-1337.27,9.84e-05,2]
[353815669,1740076232161,-440.27,9.84e-05,2]
[353815670,1740076232171,-439.87,9.84e-05,2]
[353815671,1740076232180,-500.0,9.89e-05,2]
[353815672,1740076232190,-150.0,9.899e-05,2]
[353815673,1740076232199,-987.13,9.9e-05,2]
[353815674,1740076232208,-987.13,9.9e-05,2]
[353815675,1740076232218,-987.13,9.9e-05,2]
[353815676,1740076232228,-987.13,9.9e-05,2]
[353815677,1740076232237,-150.0,9.917e-05,2]
[353815678,1740076232247,-4242.83134941,9.959e-05,2]
[353815679,1740076232288,163.56,9.309e-05,2]
[353815680,1740076232301,-20283.25864442,9.959e-05,2]
[353815681,1740076232312,-518.48074557,9.959e-05,2]
[353815683,1740076232334,-468.53761822,9.959e-05,2]
[353815684,1740076232349,-1469.69864955,9.959e-05,2]
[353815694,1740076237878,-828.941156,9.959e-05,2]
[353815697,1740076238093,-18869.8,9.959e-05,2]
[353815698,1740076238148,-393.69097478,9.959e-05,2]
[353815699,1740076238159,-6337.06,9.959e-05,2]
[353815700,1740076238206,-9874.1088,9.959e-05,2]
[353815701,1740076238217,-3588.81846305,9.959e-05,2]
[353815702,1740076238259,-7053.23970044,9.959e-05,2]
[353815703,1740076238271,-5501.99999996,9.959e-05,2]
[353815884,1740076240114,-311.81772702,9.959e-05,2]
[353815886,1740076240126,-274.29505089,9.959e-05,2]
[353816211,1740076243092,-3743.71631711,9.959e-05,2]
[353816218,1740076243151,-7483.04206853,9.959e-05,2]
[353816507,1740076246164,-416.48999995,9.959e-05,2]
[353816513,1740076246223,-352.83533883,9.959e-05,2]
[353816515,1740076246235,-274.45723625,9.959e-05,2]
[353816517,1740076246245,-1227.43353785,9.959e-05,2]
[353816519,1740076246258,-521.40020088,9.959e-05,2]
[353817594,1740076561711,224.43,8.767e-05,2]
[353817596,1740076616740,-520.0,9.682e-05,2]
[353817597,1740076616767,-364.93,9.731e-05,2]
[353817598,1740076616799,-1141.25,9.758e-05,2]
[353817599,1740076616825,-22304.42432432,9.959e-05,2]
[353817600,1740076616853,-2714.5223119,9.959e-05,2]
[353817601,1740076616877,-3661.63711865,9.959e-05,2]
[353817602,1740076616902,-5328.81601251,9.999e-05,2]
[353817603,1740076616928,-150.0,9.999e-05,2]
[353817604,1740076616954,-500.0,9.999e-05,2]
[353817605,1740076616979,-500.0,9.999e-05,2]
[353817606,1740076617005,-441.0744725,9.999e-05,2]
[353817607,1740076617030,-434.41842309,9.999e-05,2]
[353817608,1740076617054,-1540.0,0.0001,2]
[353817609,1740076617080,-20398.92733703,0.0001,2]
[353817610,1740076652184,-482.38,9.829e-05,2]
[353817611,1740076652211,-300.0,9.999e-05,2]
[353817612,1740076652239,-29217.62,0.0001,2]
[353817613,1740076675914,-25000.0,0.0001,2]
[353817614,1740076706378,-1000.0,9.809e-05,2]
[353817615,1740076706404,-33000.0,0.0001,2]
[353817616,1740076827073,-2579.242,9.8e-05,2]
[353817617,1740076827102,-175.055,9.8e-05,2]
[353817618,1740076827126,-150.0,9.999e-05,2]
[353817619,1740076827150,-300.0,9.999e-05,2]
[353817620,1740076827176,-6795.703,0.0001,2]
[353817621,1740076883135,707.23,8.219e-05,2]
[353817623,1740077055952,-150.0,9.588e-05,2]
[353817624,1740077055979,-500.0,9.677e-05,2]
[353817625,1740077056006,-150.0,9.765e-05,2]
[353817626,1740077056032,-150.0,9.869e-05,2]
[353817627,1740077056056,-4313.6442902,9.992e-05,2]
[353817628,1740077056080,-1633.1059875,9.992e-05,2]
[353817629,1740077056105,-150.0,9.999e-05,2]
[353817630,1740077056131,-2953.2497223,0.0001,2]
[353817631,1740077202705,497.79539258,0.00020502,120]
[353817632,1740077276080,422.8,0.00013918,30]
[353817633,1740077392354,-22894.18,9.773e-05,2]
[353817634,1740077392379,-150.0,9.973e-05,2]
[353817635,1740077392408,-500.0,9.986e-05,2]
[353817636,1740077392434,-1348.1400533,9.992e-05,2]
[353817637,1740077392458,-3560.9425767,9.992e-05,2]
[353817638,1740077392483,-3639.97389562,9.992e-05,2]
[353817639,1740077392508,-150.0,9.999e-05,2]
[353817640,1740077392535,-17756.76347438,0.0001,2]
[353817641,1740077410782,-10000.0,0.0001,2]
[353817648,1740077432161,-182.46,9.81e-05,2]
[353817649,1740077432171,-501.58122533,0.0001,2]
[353817650,1740077432182,-3081.97164808,0.0001,2]
[353817651,1740077432194,-29932.55788102,0.0001,2]
[353817652,1740077432217,-1000.0,0.0001,2]
[353817653,1740077432228,-65239.6047972,0.0001,2]
[353817654,1740077432240,-109106.96096995,0.0001,2]
[353817655,1740077432273,-5785.77617514,0.0001,2]
[353817656,1740077432331,-692.5626787,0.0001,2]
[353817657,1740077432386,-3490.07497671,0.0001,2]
[353817692,1740077438074,-3353.17410737,0.0001,2]
[353817694,1740077438234,-5210.55731704,0.0001,2]
[353817976,1740077440691,-937.88079735,0.0001,2]
[353817978,1740077440703,-255.111,0.0001,2]
[353817981,1740077440723,-974.12804299,0.0001,2]
[353817983,1740077440734,-2201.44862701,0.0001,2]
[353817985,1740077440746,-5515.35101685,0.0001,2]
[353817987,1740077440759,-332.274,0.0001,2]
[353818242,1740077443222,-467.636979,0.0001,2]
[353818254,1740077443330,-372360.28302654,0.0001,2]
[353818256,1740077443340,-81122.83847196,0.0001,2]
[353818258,1740077443352,-106896.07823993,0.0001,2]
[353818260,1740077443361,-40659.10863536,0.0001,2]
[353818262,1740077443372,-1852.80021097,0.0001,2]
[353818264,1740077443382,-214.78184891,0.0001,2]
[353818266,1740077443391,-2623.50896455,0.0001,2]
[353818267,1740077443400,-278.45562398,0.0001,2]
[353818268,1740077443409,-198.02525954,0.0001,2]
[353818269,1740077443418,-550.0,0.0001,2]
[353818270,1740077443427,-3383.36978,0.0001,2]
[353818271,1740077443436,-435.00908453,0.0001,2]
[353818272,1740077443445,-500.22,0.0001,2]
[353818273,1740077443454,-491.67,0.0001,2]
[353818274,1740077443463,-491.75,0.0001,2]
[353818275,1740077443472,-495.25,0.0001,2]
[353818276,1740077443481,-500.86,0.0001,2]
[353818277,1740077443490,-509.98,0.0001,2]
[353818278,1740077443498,-491.2,0.0001,2]
[353818280,1740077443508,-490.04,0.0001,2]
[353818282,1740077443517,-499.09,0.0001,2]
[353818284,1740077443527,-509.63,0.0001,2]
[353818286,1740077443537,-495.47,0.0001,2]
[353818288,1740077443546,-493.98,0.0001,2]
[353818290,1740077443555,-493.31,0.0001,2]
[353818292,1740077443565,-500.0,0.00010004,2]
[353818294,1740077443575,-166.66,0.00010008,2]
[353818296,1740077443585,-1550.65,0.000101,2]
[353818298,1740077443594,-250.0,0.00010129,2]
[353818300,1740077443603,-150.0,0.00010224,2]
[353818302,1740077443613,-986.0,0.000103,2]
[353818304,1740077443622,-150.0,0.00010323,2]
[353818306,1740077443631,-19999.99,0.00010323,2]
[353818308,1740077443641,-23030.65,0.00010323,2]
[353818310,1740077443650,-16960.05,0.00010323,2]
[353818312,1740077443661,-166.66,0.00010338,2]
[353818314,1740077443670,-150.0,0.0001034,2]
[353818316,1740077443680,-415.66283013,0.00010393,2]
[353818318,1740077443689,-435.00908451,0.000104,2]
[353818320,1740077443698,-707.23,0.00010467,2]
[353818322,1740077443708,-315.75341159,0.00010488,2]
[353818324,1740077443718,-987.13,0.000105,2]
[353818326,1740077443727,-987.13,0.000105,2]
[353818328,1740077443737,-987.13,0.000105,2]
[353818330,1740077443746,-987.13,0.000105,2]
[353818332,1740077443755,-415.66283013,0.0001055,2]
[353818334,1740077443765,-1973.68,0.000106,2]
[353818336,1740077443775,-300.0,0.000106,2]
[353818338,1740077443784,-174.08,0.000106,2]
[353818340,1740077443794,-166.66,0.00010669,2]
[353818342,1740077443803,-257.43492505,0.000107,2]
[353818344,1740077443813,-1749.0,0.000107,2]
[353818346,1740077443823,-415.66283013,0.00010717,2]
[353818348,1740077443832,-771.28907528,0.000108,2]
[353818350,1740077443841,-186.57175949,0.00010858,2]
[353818352,1740077443850,-181.72771251,0.00010858,2]
[353818354,1740077443859,-1274.0,0.000109,2]
[353818356,1740077443868,-2026.0,0.000109,2]
[353818358,1740077443879,-639.0,0.000109,2]
[353818360,1740077443888,-569.0,0.000109,2]
[353818362,1740077443897,-1788.0,0.000109,2]
[353818364,1740077443906,-455.352,0.000109,2]
[353818366,1740077443915,-1009.0,0.000109,2]
[353818368,1740077443924,-3919.0,0.000109,2]
[353818370,1740077443934,-150.0,0.000109,2]
[353818372,1740077443943,-200.0,0.000109,2]
[353818374,1740077443953,-150.0,0.000109,2]
[353818376,1740077443963,-160.0,0.000109,2]
[353818378,1740077443972,-164.22159521,0.000109,2]
[353818380,1740077443982,-435.00908451,0.000109,2]
[353818382,1740077443991,-568.00306632,0.000109,2]
[353818383,1740077444001,-402.03721428,0.0001095,2]
[353818386,1740077444013,-1386.0,0.00010958,2]
[353818387,1740077444023,-151.0,0.00010958,2]
[353818389,1740077444033,-151.0,0.00010958,2]
[353818391,1740077444049,-151.0,0.00010958,2]
[353818394,1740077444059,-500.0,0.00010958,2]
[353818395,1740077444068,-168.20991874,0.00010958,2]
[353818397,1740077444078,-167.537347,0.00010958,2]
[353818399,1740077444088,-469.96942904,0.00010958,2]
[353818402,1740077444097,-500.0,0.00010958,2]
[353818404,1740077444107,-500.0,0.00010958,2]
[353818405,1740077444116,-500.0,0.00010958,7]
[353818407,1740077444125,-500.0,0.00010958,2]
[353818410,1740077444135,-500.0,0.00010958,2]
[353818411,1740077444144,-500.0,0.00010958,2]
[353818413,1740077444153,-500.0,0.00010958,2]
[353818416,1740077444163,-500.0,0.00010958,2]
[353818418,1740077444172,-636.33476838,0.00010958,2]
[353818420,1740077444182,-795.17,0.00010958,2]
[353818422,1740077444191,-485.25158051,0.00010958,2]
[353818423,1740077444201,-157.841228,0.00010958,2]
[353818426,1740077444211,-500.0,0.00010958,2]
[353818428,1740077444220,-500.0,0.00010958,2]
[353818429,1740077444230,-500.0,0.00010958,2]
[353818432,1740077444239,-500.0,0.00010958,2]
[353818433,1740077444249,-500.0,0.00010958,2]
[353818436,1740077444260,-500.0,0.00010958,2]
[353818438,1740077444270,-500.0,0.00010958,2]
[353818439,1740077444280,-374.37857586,0.00010958,2]
[353818441,1740077444289,-507.82,0.00010958,2]
[353818443,1740077444299,-637.95,0.00010958,2]
[353818445,1740077444309,-500.0,0.00010958,2]
[353818447,1740077444319,-500.0,0.00010958,2]
[353818449,1740077444329,-500.0,0.00010958,2]
[353818451,1740077444338,-500.0,0.00010958,2]
[353818454,1740077444348,-557.08,0.00010958,2]
[353818455,1740077444358,-500.0,0.00010958,2]
[353818457,1740077444368,-500.0,0.00010958,2]
[353818459,1740077444378,-500.0,0.00010958,2]
[353818462,1740077444388,-500.0,0.00010958,2]
[353818463,1740077444397,-500.0,0.00010958,2]
[353818465,1740077444407,-500.0,0.00010958,2]
[353818467,1740077444417,-179.147095,0.00010958,2]
[353818469,1740077444426,-500.0,0.00010958,2]
[353818472,1740077444436,-500.0,0.00010958,2]
[353818473,1740077444445,-498.49548242,0.00010958,2]
[353818475,1740077444455,-500.0,0.00010958,2]
[353818477,1740077444464,-500.0,0.00010958,2]
[353818479,1740077444473,-500.0,0.00010958,2]
[353818481,1740077444482,-500.0,0.00010958,2]
[353818483,1740077444491,-500.0,0.00010958,2]
[353818485,1740077444500,-500.0,0.00010958,2]
[353818487,1740077444510,-500.0,0.00010958,2]
[353818489,1740077444519,-500.0,0.00010958,2]
[353818491,1740077444529,-523.88,0.00010958,2]
[353818493,1740077444537,-635.93,0.00010958,2]
[353818495,1740077444547,-500.0,0.00010958,2]
[353818497,1740077444556,-515.85,0.00010958,2]
[353818499,1740077444566,-500.0,0.00010958,2]
[353818501,1740077444575,-502.99944854,0.00010958,2]
[353818503,1740077444585,-500.0,0.00010958,2]
[353818505,1740077444594,-500.0,0.00010958,2]
[353818507,1740077444603,-500.0,0.00010958,2]
[353818509,1740077444612,-500.0,0.00010958,2]
[353818511,1740077444621,-500.0,0.00010958,2]
[353818513,1740077444630,-598.18,0.00010958,2]
[353818515,1740077444639,-500.0,0.00010958,2]
[353818517,1740077444648,-500.0,0.00010958,2]
[353818519,1740077444658,-500.0,0.00010958,2]
[353818521,1740077444668,-500.0,0.00010958,2]
[353818523,1740077444677,-500.0,0.00010958,2]
[353818525,1740077444687,-500.0,0.00010958,2]